[Event "Early-Titled-Tuesday-Blitz-February-13-2024"]
[Site "Chess.com"]
[Date "2024.02.13"]
[Round "5"]
[White "Onischuk_V"]
[Black "SashaKuzhilniy"]
[Result "1-0"]
[WhiteElo "2791"]
[BlackElo "2591"]
[TimeControl "180+1"]
[EndTime "8:56:42 PST"]
[Termination "Onischuk_V won by resignation"]

1. e4 {[%clk 0:02:59.5]} 1... e5 {[%clk 0:02:59]} 2. Nf3 {[%clk 0:02:55.3]} 2...
Nc6 {[%clk 0:02:59.5]} 3. Bc4 {[%clk 0:02:53.1]} 3... Bc5 {[%clk 0:02:57.1]} 4.
d3 {[%clk 0:02:52]} 4... Nf6 {[%clk 0:02:56.5]} 5. O-O {[%clk 0:02:51.5]} 5...
O-O {[%clk 0:02:54.2]} 6. Nbd2 {[%clk 0:02:51.8]} 6... d6 {[%clk 0:02:50.4]} 7.
c3 {[%clk 0:02:49.2]} 7... a6 {[%clk 0:02:47.2]} 8. Bb3 {[%clk 0:02:44.3]} 8...
h6 {[%clk 0:02:45.4]} 9. h3 {[%clk 0:02:42.6]} 9... Ba7 {[%clk 0:02:45]} 10. Re1
{[%clk 0:02:41.7]} 10... Re8 {[%clk 0:02:42.9]} 11. Bc2 {[%clk 0:02:37.8]} 11...
Ne7 {[%clk 0:02:31.3]} 12. d4 {[%clk 0:02:32.9]} 12... Ng6 {[%clk 0:02:25.8]}
13. Nf1 {[%clk 0:02:32.9]} 13... c6 {[%clk 0:02:15.2]} 14. Ng3 {[%clk
0:02:29.6]} 14... Be6 {[%clk 0:02:03.1]} 15. Be3 {[%clk 0:02:25]} 15... Qc7
{[%clk 0:01:58.2]} 16. Qd2 {[%clk 0:02:21.7]} 16... Rad8 {[%clk 0:01:55.8]} 17.
Rad1 {[%clk 0:02:06.5]} 17... b5 {[%clk 0:01:54.5]} 18. Qc1 {[%clk 0:02:04.2]}
18... c5 {[%clk 0:01:41.5]} 19. d5 {[%clk 0:02:04]} 19... Bc8 {[%clk 0:01:41.1]}
20. Nf5 {[%clk 0:02:00.6]} 20... Bxf5 {[%clk 0:01:38.2]} 21. exf5 {[%clk
0:02:00.3]} 21... Ne7 {[%clk 0:01:38.3]} 22. Bxh6 {[%clk 0:01:59]} 22... Nfxd5
{[%clk 0:01:09]} 23. Qg5 {[%clk 0:01:57.4]} 1-0

[Event "Early-Titled-Tuesday-Blitz-February-13-2024"]
[Site "Chess.com"]
[Date "2024.02.13"]
[Round "5"]
[White "ChristianArca"]
[Black "toog"]
[Result "0-1"]
[WhiteElo "2720"]
[BlackElo "2570"]
[TimeControl "180+1"]
[EndTime "8:56:45 PST"]
[Termination "toog won by resignation"]

1. Nf3 {[%clk 0:03:00.9]} 1... Nf6 {[%clk 0:02:57.2]} 2. d4 {[%clk 0:03:00.9]}
2... g6 {[%clk 0:02:58.1]} 3. g3 {[%clk 0:02:57.8]} 3... Bg7 {[%clk 0:02:59]} 4.
Bg2 {[%clk 0:02:58.7]} 4... O-O {[%clk 0:02:59.5]} 5. O-O {[%clk 0:02:59.6]}
5... d6 {[%clk 0:02:59.9]} 6. c4 {[%clk 0:03:00]} 6... Nc6 {[%clk 0:03:00.6]} 7.
d5 {[%clk 0:03:00.6]} 7... Na5 {[%clk 0:03:00.7]} 8. Qc2 {[%clk 0:03:01.2]} 8...
Bf5 {[%clk 0:02:53.4]} 9. Qa4 {[%clk 0:02:58.4]} 9... c5 {[%clk 0:02:48.7]} 10.
dxc6 {[%clk 0:02:58.3]} 10... Nxc6 {[%clk 0:02:47.2]} 11. Nc3 {[%clk 0:02:58]}
11... Rc8 {[%clk 0:02:33.9]} 12. Rd1 {[%clk 0:02:56]} 12... Qa5 {[%clk
0:02:20.9]} 13. Qb3 {[%clk 0:02:46.9]} 13... Qa6 {[%clk 0:02:15.2]} 14. Nd4
{[%clk 0:02:38.6]} 14... Bd7 {[%clk 0:02:05.5]} 15. Nxc6 {[%clk 0:02:29.3]}
15... Bxc6 {[%clk 0:02:02.8]} 16. e4 {[%clk 0:02:29.9]} 16... Nd7 {[%clk
0:02:00.9]} 17. Be3 {[%clk 0:02:30.1]} 17... Nc5 {[%clk 0:01:58.3]} 18. Bxc5
{[%clk 0:02:20.6]} 18... dxc5 {[%clk 0:01:58.1]} 19. Nd5 {[%clk 0:02:21.1]}
19... Rfe8 {[%clk 0:01:53.6]} 20. Bh3 {[%clk 0:02:18]} 20... e6 {[%clk
0:01:50.8]} 21. Nc3 {[%clk 0:02:16.2]} 21... Bxc3 {[%clk 0:01:33.4]} 22. Qxc3
{[%clk 0:02:17.1]} 22... Bxe4 {[%clk 0:01:33.5]} 23. b3 {[%clk 0:01:55.8]} 23...
Qc6 {[%clk 0:01:31.2]} 24. Qf6 {[%clk 0:01:51.6]} 24... Qc7 {[%clk 0:01:18]} 25.
Rd2 {[%clk 0:01:47.8]} 25... Qe7 {[%clk 0:01:17.4]} 26. Rad1 {[%clk 0:01:48.7]}
26... Qxf6 {[%clk 0:01:17.5]} 0-1

[Event "Early-Titled-Tuesday-Blitz-February-13-2024"]
[Site "Chess.com"]
[Date "2024.02.13"]
[Round "5"]
[White "giovannibrandao7"]
[Black "SharapovEvgeny"]
[Result "0-1"]
[WhiteElo "2250"]
[BlackElo "2542"]
[TimeControl "180+1"]
[EndTime "8:56:50 PST"]
[Termination "SharapovEvgeny won by resignation"]

1. e4 {[%clk 0:02:56.1]} 1... c5 {[%clk 0:02:59.5]} 2. Nf3 {[%clk 0:02:56]} 2...
d6 {[%clk 0:02:59.5]} 3. d4 {[%clk 0:02:55.3]} 3... cxd4 {[%clk 0:02:59.3]} 4.
Nxd4 {[%clk 0:02:55.3]} 4... Nf6 {[%clk 0:02:59.5]} 5. Nc3 {[%clk 0:02:48.6]}
5... Nc6 {[%clk 0:02:59.6]} 6. Be2 {[%clk 0:02:17.3]} 6... e5 {[%clk 0:02:58.8]}
7. Nb3 {[%clk 0:02:15.3]} 7... Be7 {[%clk 0:02:58.5]} 8. O-O {[%clk 0:02:14.8]}
8... O-O {[%clk 0:02:58]} 9. Be3 {[%clk 0:02:14.2]} 9... a5 {[%clk 0:02:57.6]}
10. a4 {[%clk 0:02:13.7]} 10... Nb4 {[%clk 0:02:57.6]} 11. Qd2 {[%clk
0:02:10.7]} 11... d5 {[%clk 0:02:56.4]} 12. exd5 {[%clk 0:02:08.2]} 12... Nfxd5
{[%clk 0:02:56.3]} 13. Nxd5 {[%clk 0:02:03.7]} 13... Nxd5 {[%clk 0:02:54.9]} 14.
Rad1 {[%clk 0:01:59.1]} 14... Nxe3 {[%clk 0:02:54.3]} 15. Qxe3 {[%clk 0:02:00]}
15... Qc7 {[%clk 0:02:53.3]} 16. Qe4 {[%clk 0:01:41.5]} 16... Be6 {[%clk
0:02:47.8]} 17. Rfe1 {[%clk 0:01:36.2]} 17... Rac8 {[%clk 0:02:44.3]} 18. Bd3
{[%clk 0:01:36]} 18... g6 {[%clk 0:02:35.5]} 19. Qxe5 {[%clk 0:01:35.9]} 19...
Bd6 {[%clk 0:02:26.4]} 20. Qxa5 {[%clk 0:01:33.7]} 20... Bxh2+ {[%clk
0:02:25.5]} 21. Kh1 {[%clk 0:01:33.8]} 21... Qf4 {[%clk 0:02:13.9]} 22. g3
{[%clk 0:01:14.2]} 22... Qh6 {[%clk 0:02:10.6]} 0-1

[Event "Early-Titled-Tuesday-Blitz-February-13-2024"]
[Site "Chess.com"]
[Date "2024.02.13"]
[Round "5"]
[White "temus_galaktionov"]
[Black "Chesstiger64"]
[Result "1-0"]
[WhiteElo "2889"]
[BlackElo "2324"]
[TimeControl "180+1"]
[EndTime "8:56:58 PST"]
[Termination "temus_galaktionov won by resignation"]

1. d4 {[%clk 0:02:57.6]} 1... d6 {[%clk 0:02:59.3]} 2. Nf3 {[%clk 0:02:54.9]}
2... Bg4 {[%clk 0:02:59.1]} 3. Nbd2 {[%clk 0:02:54.9]} 3... Nd7 {[%clk
0:02:58.9]} 4. h3 {[%clk 0:02:55.5]} 4... Bh5 {[%clk 0:02:58.5]} 5. g4 {[%clk
0:02:56.1]} 5... Bg6 {[%clk 0:02:57.8]} 6. Bg2 {[%clk 0:02:56.7]} 6... c6 {[%clk
0:02:55.9]} 7. Nh4 {[%clk 0:02:56.7]} 7... e5 {[%clk 0:02:56.2]} 8. Nxg6 {[%clk
0:02:57.3]} 8... hxg6 {[%clk 0:02:56.5]} 9. e3 {[%clk 0:02:57.6]} 9... Ngf6
{[%clk 0:02:54.1]} 10. Nc4 {[%clk 0:02:54.7]} 10... Qc7 {[%clk 0:02:53]} 11. a4
{[%clk 0:02:49.9]} 11... d5 {[%clk 0:02:52.9]} 12. Nxe5 {[%clk 0:02:48.5]} 12...
Nxe5 {[%clk 0:02:53.8]} 13. dxe5 {[%clk 0:02:49.4]} 13... Qxe5 {[%clk
0:02:53.8]} 14. Qd4 {[%clk 0:02:49.2]} 14... Qxd4 {[%clk 0:02:50.6]} 15. exd4
{[%clk 0:02:50.1]} 15... Bd6 {[%clk 0:02:50.4]} 16. Be3 {[%clk 0:02:45.4]} 16...
Kd7 {[%clk 0:02:47.3]} 17. Kd2 {[%clk 0:02:45]} 17... Rae8 {[%clk 0:02:47.1]}
18. Kd3 {[%clk 0:02:45.3]} 18... Ne4 {[%clk 0:02:46.6]} 19. f3 {[%clk
0:02:40.7]} 19... Nf6 {[%clk 0:02:37.3]} 20. Rhe1 {[%clk 0:02:38.1]} 20... Bg3
{[%clk 0:02:32.9]} 21. Re2 {[%clk 0:02:38.3]} 21... Re7 {[%clk 0:02:33.4]} 22.
Bd2 {[%clk 0:02:38.1]} 22... Rxe2 {[%clk 0:02:32]} 23. Kxe2 {[%clk 0:02:39]}
23... Re8+ {[%clk 0:02:31.6]} 24. Kd3 {[%clk 0:02:39.5]} 24... a6 {[%clk
0:02:23.6]} 25. b3 {[%clk 0:02:37.5]} 25... Re6 {[%clk 0:02:20.5]} 26. c4 {[%clk
0:02:37.6]} 26... dxc4+ {[%clk 0:02:11.2]} 27. bxc4 {[%clk 0:02:38.5]} 27... Ne8
{[%clk 0:02:07.6]} 28. f4 {[%clk 0:02:36.8]} 28... f5 {[%clk 0:02:06.4]} 29. d5
{[%clk 0:02:33.7]} 29... cxd5 {[%clk 0:02:05.4]} 30. Bxd5 {[%clk 0:02:33.2]}
30... Rb6 {[%clk 0:02:00.3]} 31. a5 {[%clk 0:02:31.5]} 31... Rd6 {[%clk
0:01:49.5]} 32. Bb4 {[%clk 0:02:28.7]} 32... Bxf4 {[%clk 0:01:47.8]} 33. Bxd6
{[%clk 0:02:28.2]} 33... Nxd6 {[%clk 0:01:48]} 34. c5 {[%clk 0:02:25.2]} 34...
Ne4 {[%clk 0:01:41.6]} 35. Bxe4 {[%clk 0:02:23.1]} 35... fxe4+ {[%clk
0:01:41.9]} 36. Kxe4 {[%clk 0:02:24]} 36... g5 {[%clk 0:01:28.9]} 37. Kd5 {[%clk
0:02:23.9]} 37... Bd2 {[%clk 0:01:26.1]} 38. Ra2 {[%clk 0:02:20.1]} 38... Bc3
{[%clk 0:01:20.6]} 39. Ra3 {[%clk 0:02:19.2]} 39... Bb4 {[%clk 0:01:18.9]} 40.
Rb3 {[%clk 0:02:18.6]} 40... Bxa5 {[%clk 0:01:18.6]} 41. Rxb7+ {[%clk
0:02:18.9]} 41... Kd8 {[%clk 0:01:18.8]} 42. Kd6 {[%clk 0:02:17.5]} 42... Kc8
{[%clk 0:01:16.3]} 43. Ra7 {[%clk 0:02:17.3]} 1-0

[Event "Early-Titled-Tuesday-Blitz-February-13-2024"]
[Site "Chess.com"]
[Date "2024.02.13"]
[Round "5"]
[White "baki83"]
[Black "vishwa_vijeta"]
[Result "1-0"]
[WhiteElo "2849"]
[BlackElo "2619"]
[TimeControl "180+1"]
[EndTime "8:57:03 PST"]
[Termination "baki83 won by resignation"]

1. e4 {[%clk 0:03:00.9]} 1... c5 {[%clk 0:02:51.7]} 2. Nf3 {[%clk 0:03:00.8]}
2... d6 {[%clk 0:02:49.6]} 3. Bb5+ {[%clk 0:03:00.9]} 3... Bd7 {[%clk
0:02:49.1]} 4. c4 {[%clk 0:03:00.7]} 4... a6 {[%clk 0:02:46.4]} 5. Bxd7+ {[%clk
0:03:00.5]} 5... Qxd7 {[%clk 0:02:47.3]} 6. O-O {[%clk 0:03:00.4]} 6... Nc6
{[%clk 0:02:47.3]} 7. Nc3 {[%clk 0:03:00.7]} 7... Nf6 {[%clk 0:02:47.7]} 8. Nd5
{[%clk 0:02:57.9]} 8... Nxd5 {[%clk 0:02:29.9]} 9. exd5 {[%clk 0:02:46.4]} 9...
Na5 {[%clk 0:02:28.1]} 10. d3 {[%clk 0:02:41]} 10... g6 {[%clk 0:02:27.4]} 11.
Bd2 {[%clk 0:02:37.2]} 11... b6 {[%clk 0:02:23.1]} 12. Bc3 {[%clk 0:02:37.4]}
12... Rg8 {[%clk 0:02:21.1]} 13. Qd2 {[%clk 0:02:33.8]} 13... Bg7 {[%clk
0:02:19.1]} 14. Bxg7 {[%clk 0:02:29.2]} 14... Rxg7 {[%clk 0:02:17.2]} 15. Qh6
{[%clk 0:02:29]} 15... Kf8 {[%clk 0:02:17.2]} 16. Rfe1 {[%clk 0:02:28.1]} 16...
Kg8 {[%clk 0:02:16.7]} 17. Re3 {[%clk 0:02:26.9]} 17... Re8 {[%clk 0:02:16.1]}
18. Rae1 {[%clk 0:02:25.9]} 18... b5 {[%clk 0:02:16.4]} 19. b3 {[%clk
0:02:25.8]} 19... e5 {[%clk 0:02:02.8]} 20. dxe6 {[%clk 0:02:23.5]} 20... fxe6
{[%clk 0:02:01.6]} 21. Ng5 {[%clk 0:02:22.3]} 21... Rge7 {[%clk 0:01:59.3]} 22.
h4 {[%clk 0:01:58.1]} 22... e5 {[%clk 0:01:44.5]} 23. h5 {[%clk 0:01:58.1]}
23... Qf5 {[%clk 0:01:44.1]} 24. Rf3 {[%clk 0:01:49]} 24... Qd7 {[%clk
0:01:25.9]} 25. hxg6 {[%clk 0:01:41.4]} 25... Rg7 {[%clk 0:01:22]} 26. Rf7
{[%clk 0:01:30.5]} 1-0

[Event "Early-Titled-Tuesday-Blitz-February-13-2024"]
[Site "Chess.com"]
[Date "2024.02.13"]
[Round "5"]
[White "HanSchut"]
[Black "JERO-8914"]
[Result "0-1"]
[WhiteElo "2257"]
[BlackElo "2437"]
[TimeControl "180+1"]
[EndTime "8:57:12 PST"]
[Termination "JERO-8914 won by resignation"]

1. e4 {[%clk 0:03:00.9]} 1... e5 {[%clk 0:02:59.4]} 2. Nf3 {[%clk 0:03:01.1]}
2... Nc6 {[%clk 0:02:59.5]} 3. Bc4 {[%clk 0:03:01.7]} 3... Bc5 {[%clk
0:02:59.4]} 4. c3 {[%clk 0:03:02.3]} 4... Nf6 {[%clk 0:02:59.1]} 5. d4 {[%clk
0:03:03]} 5... exd4 {[%clk 0:02:59.5]} 6. b4 {[%clk 0:03:03.5]} 6... Bb6 {[%clk
0:02:57.8]} 7. e5 {[%clk 0:03:04]} 7... d5 {[%clk 0:02:55]} 8. exf6 {[%clk
0:03:04.9]} 8... dxc4 {[%clk 0:02:55.2]} 9. Qe2+ {[%clk 0:03:04.7]} 9... Be6
{[%clk 0:02:54.3]} 10. b5 {[%clk 0:03:03.5]} 10... d3 {[%clk 0:02:50.6]} 11. Qe4
{[%clk 0:03:03.7]} 11... Nb4 {[%clk 0:02:49.8]} 12. O-O {[%clk 0:02:45]} 12...
Nc2 {[%clk 0:02:35.2]} 13. fxg7 {[%clk 0:02:41.2]} 13... Rg8 {[%clk 0:02:32.9]}
14. Bg5 {[%clk 0:02:41]} 14... Qd5 {[%clk 0:02:26.2]} 15. Qxh7 {[%clk
0:02:41.1]} 15... Kd7 {[%clk 0:02:23]} 16. Nbd2 {[%clk 0:02:41]} 16... Bf5
{[%clk 0:02:05]} 17. Qh6 {[%clk 0:02:29.3]} 17... Nxa1 {[%clk 0:01:57.2]} 18.
Rxa1 {[%clk 0:02:27.8]} 18... Rae8 {[%clk 0:01:53.5]} 19. Nxc4 {[%clk
0:02:04.7]} 19... Qxc4 {[%clk 0:01:40.1]} 20. Qf6 {[%clk 0:02:04.2]} 20... Qe6
{[%clk 0:01:29.4]} 21. Rd1 {[%clk 0:01:48.5]} 21... Qxf6 {[%clk 0:01:25.7]} 22.
Bxf6 {[%clk 0:01:49.4]} 22... Re6 {[%clk 0:01:22.9]} 23. Ne5+ {[%clk 0:01:32.6]}
23... Kc8 {[%clk 0:01:21.4]} 24. g4 {[%clk 0:01:17.3]} 24... Rxf6 {[%clk
0:01:20.6]} 25. gxf5 {[%clk 0:01:17.3]} 25... Rxg7+ {[%clk 0:01:20.8]} 26. Kf1
{[%clk 0:01:16.9]} 26... Rxf5 {[%clk 0:01:19.9]} 0-1

[Event "Early-Titled-Tuesday-Blitz-February-13-2024"]
[Site "Chess.com"]
[Date "2024.02.13"]
[Round "5"]
[White "FGHSMN"]
[Black "IwkooO"]
[Result "1-0"]
[WhiteElo "2974"]
[BlackElo "2644"]
[TimeControl "180+1"]
[EndTime "8:57:13 PST"]
[Termination "FGHSMN won by resignation"]

1. d4 {[%clk 0:02:40.8]} 1... Nf6 {[%clk 0:02:59.9]} 2. Bf4 {[%clk 0:02:37.1]}
2... g6 {[%clk 0:02:58.3]} 3. Nc3 {[%clk 0:02:34.9]} 3... d5 {[%clk 0:02:54.3]}
4. e3 {[%clk 0:02:33.9]} 4... Bg7 {[%clk 0:02:53.3]} 5. Nb5 {[%clk 0:02:34.5]}
5... Na6 {[%clk 0:02:52.9]} 6. Nf3 {[%clk 0:02:35.2]} 6... O-O {[%clk
0:02:49.4]} 7. Bd3 {[%clk 0:02:33.1]} 7... c6 {[%clk 0:02:47.7]} 8. Nc3 {[%clk
0:02:32.5]} 8... Nc7 {[%clk 0:02:23.8]} 9. h3 {[%clk 0:02:31.3]} 9... Ne6 {[%clk
0:02:13.3]} 10. Be5 {[%clk 0:02:30.9]} 10... a6 {[%clk 0:02:09.5]} 11. O-O
{[%clk 0:02:30]} 11... c5 {[%clk 0:02:08.3]} 12. a4 {[%clk 0:02:25.5]} 12... b6
{[%clk 0:02:05.3]} 13. dxc5 {[%clk 0:02:01.4]} 13... Nxc5 {[%clk 0:02:03.6]} 14.
Bd4 {[%clk 0:01:54.9]} 14... Bb7 {[%clk 0:01:53.4]} 15. a5 {[%clk 0:01:51.4]}
15... Nxd3 {[%clk 0:01:52.8]} 16. cxd3 {[%clk 0:01:52.3]} 16... bxa5 {[%clk
0:01:46.8]} 17. Qa4 {[%clk 0:01:52.6]} 17... e6 {[%clk 0:01:35.6]} 18. Nd2
{[%clk 0:01:34.3]} 18... Nd7 {[%clk 0:01:29.1]} 19. Bxg7 {[%clk 0:01:32.7]}
19... Kxg7 {[%clk 0:01:30]} 20. Nb3 {[%clk 0:01:28.6]} 20... Qb6 {[%clk
0:01:28.5]} 21. Nxa5 {[%clk 0:01:24.6]} 21... Rfc8 {[%clk 0:01:14.4]} 22. Qxd7
{[%clk 0:01:23.4]} 1-0

[Event "Early-Titled-Tuesday-Blitz-February-13-2024"]
[Site "Chess.com"]
[Date "2024.02.13"]
[Round "5"]
[White "ACollins05"]
[Black "N_I_Chess"]
[Result "0-1"]
[WhiteElo "2444"]
[BlackElo "2297"]
[TimeControl "180+1"]
[EndTime "8:57:15 PST"]
[Termination "N_I_Chess won by resignation"]

1. d4 {[%clk 0:00:43.6]} 1... Nf6 {[%clk 0:02:53.7]} 2. c4 {[%clk 0:00:42.7]}
2... e6 {[%clk 0:02:54]} 3. Nf3 {[%clk 0:00:42.2]} 3... Bb4+ {[%clk 0:02:53.8]}
4. Nbd2 {[%clk 0:00:41.8]} 4... Qe7 {[%clk 0:02:54.7]} 5. a3 {[%clk 0:00:41]}
5... Bxd2+ {[%clk 0:02:55]} 6. Qxd2 {[%clk 0:00:41]} 6... d6 {[%clk 0:02:55.9]}
7. e3 {[%clk 0:00:39.8]} 7... O-O {[%clk 0:02:56.4]} 8. b4 {[%clk 0:00:40.2]}
8... e5 {[%clk 0:02:57.3]} 9. Qb2 {[%clk 0:00:37.9]} 9... Re8 {[%clk 0:02:55.5]}
10. Be2 {[%clk 0:00:36.1]} 10... Bg4 {[%clk 0:02:55.5]} 11. dxe5 {[%clk
0:00:27.9]} 11... dxe5 {[%clk 0:02:56.4]} 12. O-O {[%clk 0:00:27.7]} 12... Nbd7
{[%clk 0:02:47.7]} 13. Bd2 {[%clk 0:00:24.5]} 13... h6 {[%clk 0:02:44.4]} 14.
Bc3 {[%clk 0:00:24.2]} 14... Ne4 {[%clk 0:02:35]} 15. Rad1 {[%clk 0:00:21.2]}
15... Nxc3 {[%clk 0:02:34.1]} 16. Qxc3 {[%clk 0:00:22.1]} 16... a5 {[%clk
0:02:29]} 17. h3 {[%clk 0:00:20.3]} 17... Bh5 {[%clk 0:02:28.2]} 18. Nxe5 {[%clk
0:00:16.2]} 18... Bxe2 {[%clk 0:02:23.4]} 19. Nxd7 {[%clk 0:00:12.3]} 19... Bxf1
{[%clk 0:02:20.2]} 20. Ne5 {[%clk 0:00:10.5]} 20... Qxe5 {[%clk 0:02:18.6]} 21.
Qxe5 {[%clk 0:00:09.9]} 21... Rxe5 {[%clk 0:02:19.3]} 22. Kxf1 {[%clk
0:00:10.8]} 22... axb4 {[%clk 0:02:18.2]} 23. axb4 {[%clk 0:00:11.7]} 23... Re4
{[%clk 0:02:18]} 0-1

[Event "Early-Titled-Tuesday-Blitz-February-13-2024"]
[Site "Chess.com"]
[Date "2024.02.13"]
[Round "5"]
[White "mbachez"]
[Black "kushagramohan"]
[Result "1-0"]
[WhiteElo "2637"]
[BlackElo "2840"]
[TimeControl "180+1"]
[EndTime "8:57:21 PST"]
[Termination "mbachez won by resignation"]

1. e4 {[%clk 0:02:59.8]} 1... e5 {[%clk 0:02:58.9]} 2. Nf3 {[%clk 0:02:58.8]}
2... Nc6 {[%clk 0:02:59.5]} 3. Nc3 {[%clk 0:02:58.5]} 3... Nf6 {[%clk 0:03:00]}
4. Be2 {[%clk 0:02:58.8]} 4... g6 {[%clk 0:02:57.6]} 5. d4 {[%clk 0:02:57.7]}
5... exd4 {[%clk 0:02:53.5]} 6. Nxd4 {[%clk 0:02:57.9]} 6... Bg7 {[%clk
0:02:50.7]} 7. Be3 {[%clk 0:02:56.7]} 7... O-O {[%clk 0:02:50.2]} 8. Nb3 {[%clk
0:02:53.7]} 8... Re8 {[%clk 0:02:49.9]} 9. Qd3 {[%clk 0:02:49.9]} 9... Nb4
{[%clk 0:02:47]} 10. Qd2 {[%clk 0:02:50]} 10... d5 {[%clk 0:02:34.6]} 11. a3
{[%clk 0:02:38.8]} 11... Nc6 {[%clk 0:02:12.5]} 12. exd5 {[%clk 0:02:37.7]}
12... Ne5 {[%clk 0:02:13]} 13. h3 {[%clk 0:02:31.1]} 13... Bf5 {[%clk
0:02:11.8]} 14. O-O {[%clk 0:02:29.1]} 14... Ne4 {[%clk 0:02:11.3]} 15. Nxe4
{[%clk 0:02:26.2]} 15... Bxe4 {[%clk 0:02:12.2]} 16. c4 {[%clk 0:02:21.9]} 16...
b6 {[%clk 0:02:09.6]} 17. Nd4 {[%clk 0:02:19.7]} 17... Qd7 {[%clk 0:02:07.1]}
18. f3 {[%clk 0:02:09.5]} 18... Bf5 {[%clk 0:01:59.5]} 19. f4 {[%clk 0:02:05.2]}
19... Bxh3 {[%clk 0:01:46.1]} 20. fxe5 {[%clk 0:02:05]} 20... Rxe5 {[%clk
0:01:45.2]} 21. Bf3 {[%clk 0:01:55.6]} 21... Rae8 {[%clk 0:01:36.3]} 22. Bf4
{[%clk 0:01:49.4]} 22... Re4 {[%clk 0:01:33.6]} 23. Bxe4 {[%clk 0:01:45.7]}
23... Rxe4 {[%clk 0:01:34.5]} 24. Nc6 {[%clk 0:01:38.8]} 24... Bg4 {[%clk
0:01:12.1]} 25. Rae1 {[%clk 0:01:36.7]} 25... Rxc4 {[%clk 0:01:12.2]} 26. Re7
{[%clk 0:01:30.7]} 26... Qf5 {[%clk 0:01:08]} 1-0

[Event "Early-Titled-Tuesday-Blitz-February-13-2024"]
[Site "Chess.com"]
[Date "2024.02.13"]
[Round "5"]
[White "Logman74"]
[Black "JEIGOTH"]
[Result "1-0"]
[WhiteElo "2545"]
[BlackElo "2249"]
[TimeControl "180+1"]
[EndTime "8:57:21 PST"]
[Termination "Logman74 won by resignation"]

1. e4 {[%clk 0:03:00.9]} 1... e5 {[%clk 0:02:50]} 2. Nf3 {[%clk 0:03:01.4]} 2...
d6 {[%clk 0:02:49.9]} 3. d4 {[%clk 0:03:00.3]} 3... Nd7 {[%clk 0:02:50]} 4. Nc3
{[%clk 0:02:59.8]} 4... Ngf6 {[%clk 0:02:48.9]} 5. Bc4 {[%clk 0:02:59.8]} 5...
Be7 {[%clk 0:02:48.9]} 6. O-O {[%clk 0:03:00.1]} 6... O-O {[%clk 0:02:48.7]} 7.
Qe2 {[%clk 0:02:59.9]} 7... c6 {[%clk 0:02:48.8]} 8. a4 {[%clk 0:02:59.7]} 8...
b6 {[%clk 0:02:43.3]} 9. Rd1 {[%clk 0:02:59.7]} 9... Qc7 {[%clk 0:02:42.3]} 10.
Bg5 {[%clk 0:02:56.5]} 10... Bb7 {[%clk 0:02:41.4]} 11. Nh4 {[%clk 0:02:53.9]}
11... Rfe8 {[%clk 0:02:31.3]} 12. Nf5 {[%clk 0:02:46.5]} 12... Bf8 {[%clk
0:02:30.9]} 13. Ba2 {[%clk 0:02:41.1]} 13... h6 {[%clk 0:02:24.6]} 14. Bh4
{[%clk 0:02:39.6]} 14... g6 {[%clk 0:02:14.9]} 15. dxe5 {[%clk 0:02:39.1]} 15...
dxe5 {[%clk 0:02:12.2]} 16. Qc4 {[%clk 0:02:27.4]} 16... Nc5 {[%clk 0:01:41.6]}
17. Bxf6 {[%clk 0:02:24.7]} 17... gxf5 {[%clk 0:01:40.9]} 18. exf5 {[%clk
0:02:24.3]} 18... e4 {[%clk 0:01:29]} 19. Qe2 {[%clk 0:02:03.9]} 19... Qf4
{[%clk 0:01:24.1]} 20. Qh5 {[%clk 0:01:53.2]} 20... Ne6 {[%clk 0:00:40.9]} 21.
fxe6 {[%clk 0:01:48.5]} 21... fxe6 {[%clk 0:00:40.2]} 22. Qg6+ {[%clk 0:01:45]}
1-0

[Event "Early-Titled-Tuesday-Blitz-February-13-2024"]
[Site "Chess.com"]
[Date "2024.02.13"]
[Round "5"]
[White "Zavgorodniy_Sergiy"]
[Black "CMmauricio"]
[Result "1-0"]
[WhiteElo "2634"]
[BlackElo "2830"]
[TimeControl "180+1"]
[EndTime "8:57:27 PST"]
[Termination "Zavgorodniy_Sergiy won by resignation"]

1. d4 {[%clk 0:03:00.9]} 1... e6 {[%clk 0:03:00.9]} 2. c4 {[%clk 0:03:01.1]}
2... d5 {[%clk 0:03:01.6]} 3. Nf3 {[%clk 0:03:01.4]} 3... f5 {[%clk 0:03:02.3]}
4. g3 {[%clk 0:03:01.3]} 4... Nf6 {[%clk 0:03:03]} 5. Bg2 {[%clk 0:03:01.7]}
5... c6 {[%clk 0:03:03.8]} 6. O-O {[%clk 0:03:02.1]} 6... Bd6 {[%clk 0:03:04.4]}
7. b3 {[%clk 0:03:02.6]} 7... Qe7 {[%clk 0:03:04.6]} 8. a4 {[%clk 0:03:02.5]}
8... O-O {[%clk 0:03:05.1]} 9. Ba3 {[%clk 0:03:02.9]} 9... Ne4 {[%clk
0:03:05.7]} 10. Bxd6 {[%clk 0:03:02.8]} 10... Qxd6 {[%clk 0:03:06.6]} 11. Nbd2
{[%clk 0:03:03.2]} 11... Nd7 {[%clk 0:03:07.3]} 12. Qc2 {[%clk 0:03:03.3]} 12...
Rf6 {[%clk 0:03:07.9]} 13. Qb2 {[%clk 0:03:03.4]} 13... Qe7 {[%clk 0:03:07.5]}
14. b4 {[%clk 0:03:03.3]} 14... Rh6 {[%clk 0:03:07.5]} 15. b5 {[%clk 0:03:03]}
15... Qe8 {[%clk 0:03:08]} 16. bxc6 {[%clk 0:03:00.3]} 16... bxc6 {[%clk
0:03:08.9]} 17. cxd5 {[%clk 0:03:00.6]} 17... exd5 {[%clk 0:03:09.8]} 18. Rfc1
{[%clk 0:02:59.6]} 18... Ba6 {[%clk 0:03:08]} 19. e3 {[%clk 0:02:55.6]} 19...
Qh5 {[%clk 0:03:08.5]} 20. h4 {[%clk 0:02:37]} 20... Re8 {[%clk 0:02:39.1]} 21.
Bf1 {[%clk 0:02:00.8]} 21... Bxf1 {[%clk 0:02:35.4]} 22. Kxf1 {[%clk 0:02:01.7]}
22... Nxd2+ {[%clk 0:02:01.2]} 23. Nxd2 {[%clk 0:02:02.6]} 23... g5 {[%clk
0:02:01.3]} 24. hxg5 {[%clk 0:01:52]} 24... Qh1+ {[%clk 0:01:53.4]} 25. Ke2
{[%clk 0:01:52.1]} 25... Qh5+ {[%clk 0:01:39.4]} 26. Nf3 {[%clk 0:01:45.6]}
26... Rhe6 {[%clk 0:01:36.8]} 27. Qb7 {[%clk 0:01:38.7]} 27... Nb8 {[%clk
0:01:26.3]} 28. Rh1 {[%clk 0:01:32.2]} 28... Qg6 {[%clk 0:01:23.3]} 29. Ne5
{[%clk 0:01:17.9]} 29... R6e7 {[%clk 0:01:19.2]} 30. Qxe7 {[%clk 0:01:13]} 30...
Rxe7 {[%clk 0:01:20.1]} 31. Nxg6 {[%clk 0:01:12.7]} 31... hxg6 {[%clk 0:01:21]}
32. Rab1 {[%clk 0:01:12.7]} 32... Nd7 {[%clk 0:01:21.3]} 33. Rb7 {[%clk
0:01:12.4]} 33... Kf7 {[%clk 0:01:21.8]} 1-0